bitfinex-derivatives/quotes_ETHF0:USTF0_20230702
["timestamp","ask_amount","ask_price","bid_price","bid_amount"]
[1688311630501,19.16485065,1908.6,1908.5,5.80349112]
[1688311630708,31.74581025,1908.6,1908.5,5.80349112]
[1688311631006,17.69397752,1908.6,1908.5,5.80349112]
[1688311631296,20.69397752,1908.6,1908.5,5.80349112]
[1688311631498,16.13597752,1908.6,1908.5,10.99649112]
[1688311631695,13.44985065,1908.6,1908.5,10.99649112]
[1688311632087,11.90985065,1908.6,1908.5,10.99649112]
[1688311632290,11.90985065,1908.6,1908.5,5.80349112]
[1688311632492,11.90985065,1908.6,1908.5,10.99649112]
[1688311632713,11.60985065,1908.6,1908.5,15.61049112]
[1688311632903,2.68612687,1908.9,1908.5,15.61049112]
[1688311633100,2.83612687,1909.0,1908.9,5.193]
[1688311633293,9.55165588,1909.1,1908.9,5.50731]
[1688311633294,5.89392687,1909.1,1908.9,5.50731]
[1688311633498,8.89392687,1909.1,1909.0,9.807]
[1688311633799,6.2078,1909.1,1909.0,10.83722187]
[1688311633995,6.80879635,1909.1,1909.0,1.03022187]
[1688311634403,6.52208,1909.1,1909.0,1.03022187]
[1688311634603,6.80879635,1909.1,1909.0,1.03022187]
[1688311634814,6.2078,1909.1,1909.0,1.03022187]
[1688311635004,28.04692687,1909.3,1909.0,6.22322187]
[1688311635192,3.0,1909.2,1909.0,1.03022187]
[1688311635397,6.49451635,1909.2,1909.1,4.92828]
[1688311635603,6.2078,1909.2,1909.1,4.92828]
[1688311635795,6.2078,1909.2,1909.1,10.77145845]
[1688311635992,6.2078,1909.2,1909.1,15.96445845]
[1688311636304,3.0,1909.2,1909.1,15.96445845]
[1688311636809,0.94265,1909.7,1909.5,10.193]
[1688311636810,6.34385588,1909.7,1909.5,10.193]
[1688311637011,3.0,1909.7,1909.6,4.92819]
[1688311637228,3.31418,1909.7,1909.6,10.74752959]
[1688311637516,3.31418,1909.7,1909.6,0.31419]
[1688311637907,3.0,1909.7,1909.6,0.31419]
[1688311638093,3.0,1909.7,1909.6,10.94215839]
[1688311638291,3.31418,1909.7,1909.6,10.94215839]
[1688311638493,3.0,1909.7,1909.6,10.94215839]
[1688311638897,3.2078,1909.8,1909.6,10.94215839]
[1688311639121,3.2078,1910.8,1910.5,5.0]
[1688311639421,0.1,1911.0,1910.8,0.314]
[1688311639422,4.00488485,1910.9,1910.8,0.314]
[1688311639605,2.895,1911.0,1910.8,4.928]
[1688311639917,3.4615434,1911.1,1910.9,4.606]
[1688311639918,2.6766434,1911.1,1910.9,4.606]
[1688311640126,1.28527153,1911.1,1911.0,0.31397]
[1688311640418,1.28527153,1911.1,1911.0,10.73586565]
[1688311640602,2.83596098,1911.1,1911.0,10.73586565]
[1688311641087,6.35771098,1911.1,1911.0,4.92797]
[1688311641307,6.35771098,1911.1,1911.0,0.31397]
[1688311641308,3.14991098,1911.1,1911.0,0.31397]
[1688311641498,2.83596098,1911.1,1911.0,4.91697]
[1688311641702,2.83596098,1911.1,1911.0,10.37725652]
[1688311643201,1.18547153,1911.1,1911.0,10.37725652]
[1688311643595,3.2078,1911.8,1911.5,0.31388]
[1688311643830,3.2078,1911.8,1911.7,4.91685]
[1688311644026,22.253,1912.0,1911.7,9.53085]
[1688311644201,0.28671635,1911.9,1911.7,4.92785]
[1688311644394,22.56681,1912.0,1911.7,10.39683984]
[1688311644817,0.00291004,1911.9,1911.7,10.39683984]
[1688311645510,0.00291004,1911.9,1911.8,5.31383]
[1688311645696,0.00291004,1911.9,1911.8,9.92783]
[1688311645902,0.00291004,1911.9,1911.8,4.92783]
[1688311646708,0.00291004,1911.9,1911.8,10.50047767]
[1688311647403,22.253,1912.0,1911.9,5.31382]
[1688311647618,22.64471635,1912.0,1911.9,0.31382]
[1688311647826,0.105,1911.9,1911.8,2.5081]
[1688311648120,22.25584362,1912.0,1911.9,5.68950989]
[1688311648306,22.25584362,1912.0,1911.9,6.00332989]
[1688311648502,22.45635997,1912.0,1911.9,0.31382]
[1688311648713,22.03755997,1912.0,1911.9,0.31382]
[1688311648908,22.03755997,1912.0,1911.9,4.88682]
[1688311649213,22.03755997,1912.0,1911.9,10.66647359]
[1688311649443,21.75084362,1912.0,1911.9,20.85947359]
[1688311649913,21.34214362,1912.0,1911.9,20.85947359]
[1688311650301,21.34214362,1912.0,1911.9,24.06727359]
[1688311650713,21.34214362,1912.0,1911.9,20.85947359]
[1688311651123,3.2078,1912.8,1912.3,10.193]
[1688311651313,0.88916,1912.9,1912.7,4.591]
[1688311651518,4.95116047,1912.9,1912.8,0.31367]
[1688311652625,4.95116047,1912.9,1912.6,0.94888191]
[1688311652824,3.30962602,1912.7,1912.2,0.31374]
[1688311653014,3.2078,1912.3,1912.2,0.31374]
[1688311653221,3.80826635,1912.3,1912.2,0.31376]
[1688311653914,3.80826635,1912.3,1912.1,0.00784415]
[1688311654112,0.88125412,1912.2,1912.1,0.32162415]
[1688311654616,0.88125412,1912.2,1911.9,0.78443]
[1688311654923,0.88125412,1912.2,1911.6,0.94159]
[1688311654924,0.105,1911.9,1911.6,0.94159]
[1688311655124,4.08911412,1911.8,1911.6,0.94159]
[1688311655321,4.62167644,1911.8,1911.6,0.94159]
[1688311655522,4.62167644,1911.8,1911.6,0.31386]
[1688311655725,4.69631761,1911.8,1911.5,0.79248642]
[1688311655915,3.3128,1911.6,1911.5,0.00784642]
[1688311656121,0.105,1911.4,1911.3,0.78469]
[1688311656416,0.4189,1911.4,1911.3,5.39869]
[1688311656615,3.6267,1911.4,1911.3,5.39869]
[1688311656933,3.6267,1911.4,1911.2,0.31389]
[1688311657122,0.85420047,1911.3,1911.1,0.78485]
[1688311657323,2.52173,1911.2,1911.1,5.39885]
[1688311657620,2.52173,1911.2,1911.1,4.92795]
[1688311659633,2.52173,1911.2,1911.1,0.31395]
[1688311659824,2.52173,1911.2,1911.0,0.79272868]
[1688311660018,0.28671635,1911.1,1911.0,0.79272868]
[1688311660326,0.31395,1911.1,1911.0,0.79272868]
[1688311660625,1.16815047,1911.1,1911.0,0.79272868]
[1688311661519,5.75415047,1911.1,1910.9,0.31396]
[1688311661726,3.52178,1911.0,1910.8,0.94185]
[1688311661936,4.592,1910.6,1909.9,0.31409]
[1688311662133,4.592,1910.6,1909.7,6.16056923]
[1688311662134,0.31416,1909.8,1909.6,1.04728]
[1688311662335,8.11098,1909.7,1909.6,1.04728]
[1688311662545,0.31418,1909.7,1909.6,1.04728]
[1688311662922,0.00785484,1909.8,1909.6,12.31876516]
[1688311663112,0.00785484,1909.8,1909.7,5.31418]
[1688311663332,0.00785484,1909.8,1909.7,0.31418]
[1688311663523,0.32201484,1909.8,1909.7,0.70833389]
[1688311663831,0.00785484,1909.8,1909.7,6.22587784]
[1688311664017,0.32201484,1909.8,1909.7,0.70833389]
[1688311664430,0.60873119,1909.8,1909.7,0.81241355]
[1688311664727,0.71373119,1909.8,1909.7,0.81241355]
[1688311665125,5.29373119,1909.8,1909.5,0.00785484]
[1688311665317,8.11599,1909.6,1909.5,0.32206484]
[1688311665521,5.19490635,1909.6,1909.5,0.32206484]
[1688311665722,8.40270635,1909.6,1909.5,0.31421]
[1688311665927,8.40270635,1909.6,1909.4,0.31421]
[1688311666128,5.16248412,1909.5,1909.3,0.78553]
[1688311666329,3.49451635,1909.4,1909.3,0.78553]
[1688311666524,3.91374635,1909.4,1909.2,0.94276]
[1688311666841,5.28648412,1909.3,1909.2,0.94809118]
[1688311667134,5.28648412,1909.3,1909.1,0.31423]
[1688311667135,5.60072412,1909.3,1909.1,0.31423]
[1688311667429,3.80879635,1909.2,1909.1,0.31427]
[1688311668429,0.78562,1909.4,1909.1,0.31427]
[1688311669034,8.17951635,1909.3,1909.1,0.31427]
[1688311669226,8.17951635,1909.3,1909.0,0.94281]
[1688311669227,4.92826,1909.2,1909.0,0.31429]
[1688311669431,4.06200047,1909.1,1909.0,0.31429]
[1688311669621,4.37628047,1909.1,1909.0,0.31429]
[1688311670330,4.37628047,1909.1,1908.9,0.9428]
[1688311670533,4.614,1909.0,1908.9,0.9428]
[1688311670733,4.92829,1909.0,1908.9,0.9428]
[1688311671329,4.92829,1909.0,1908.9,1.52901026]
[1688311673239,4.92829,1909.0,1908.9,0.58621026]
[1688311673629,4.6,1908.9,1908.5,0.78584]
[1688311673830,7.8218,1908.6,1908.5,0.78584]
[1688311674042,8.10851635,1908.6,1908.5,0.78584]
[1688311674230,7.8218,1908.6,1908.5,0.78584]
[1688311674439,8.38928412,1908.6,1908.5,0.78584]
[1688311674730,8.99036047,1908.6,1908.5,0.78584]
[1688311675526,0.105,1908.5,1907.8,1.04832]
[1688311675734,4.586,1908.5,1908.3,0.786]
[1688311675938,0.28671635,1908.5,1908.3,0.786]
[1688311676135,5.49585412,1908.6,1908.3,0.786]
[1688311676330,4.614,1908.4,1908.3,0.786]
[1688311676534,5.49587412,1908.4,1908.3,0.786]
[1688311676744,5.18148412,1908.4,1908.3,0.786]
[1688311676953,0.28671635,1908.3,1908.0,1.04805]
[1688311677127,3.52226,1908.1,1908.0,0.31445]
[1688311677646,0.31439,1908.4,1908.1,5.0]
[1688311677943,0.78597,1908.5,1908.2,0.31443]
[1688311678340,4.58,1908.3,1908.2,0.31443]
[1688311678744,0.94317,1908.5,1908.2,0.31443]
[1688311679038,0.28671635,1908.4,1908.2,0.31443]
[1688311679241,0.00785936,1908.7,1908.5,5.0]
[1688311679435,0.00785936,1908.7,1908.6,0.31436]
[1688311681140,4.594,1909.0,1908.6,5.31436]
[1688311681339,0.31431,1908.9,1908.6,5.31436]
[1688311681642,0.88179412,1908.9,1908.6,5.31436]
[1688311681841,0.88179412,1908.9,1908.8,4.614]
[1688311682041,0.31431,1908.9,1908.8,4.92833]
[1688311682250,4.37631047,1908.9,1908.8,0.31433]
[1688311683043,4.06200047,1908.9,1908.8,0.31433]
[1688311683243,3.80882635,1908.9,1908.8,0.31433]
[1688311683752,0.60102635,1908.9,1908.8,0.31433]
[1688311685050,1.36113225,1909.0,1908.8,0.31433]
[1688311685341,0.00785813,1909.0,1908.9,5.22343243]
[1688311685543,0.94295,1909.2,1908.9,10.53774243]
[1688311685741,0.94295,1909.2,1909.1,4.591]
[1688311685945,0.94295,1909.2,1909.1,4.90528]
[1688311686249,0.94295,1909.2,1909.1,5.42418492]
[1688311686445,0.94295,1909.2,1909.1,0.83318492]
[1688311686648,1.22966635,1909.2,1909.1,0.83318492]
[1688311687049,0.94295,1909.2,1909.1,0.83318492]
[1688311687344,1.22966635,1909.2,1909.1,0.83318492]
[1688311687754,0.94295,1909.2,1909.1,0.83318492]
[1688311688259,0.0078569,1909.3,1909.1,15.64018492]
[1688311689054,0.0078569,1909.3,1909.1,18.84798492]
[1688311689250,22.153,1909.6,1909.4,10.193]
[1688311689444,22.153,1909.6,1909.5,4.92821]
[1688311689649,2.55844032,1909.6,1909.5,15.4170463]
[1688311690147,0.56814032,1909.6,1909.5,15.4170463]
[1688311690347,0.00785524,1909.7,1909.5,18.6248463]
[1688311690551,0.00785524,1909.7,1909.5,24.58132771]
[1688311691051,0.94223,1910.4,1910.1,0.31411]
[1688311691248,0.31408,1910.3,1910.1,0.31411]
[1688311691446,0.94223,1910.4,1910.1,0.31411]
[1688311691749,3.2078,1910.8,1910.3,5.31408]
[1688311691951,22.153,1910.9,1910.8,10.507]
[1688311692156,22.153,1910.9,1910.8,5.314]
[1688311692449,0.00784991,1911.0,1910.8,5.314]
[1688311692650,0.00784991,1911.0,1910.9,4.92798]
[1688311693049,0.32181991,1911.0,1910.9,4.92798]
[1688311693256,3.81633626,1911.0,1910.9,0.31398]
[1688311694656,0.60853626,1911.0,1910.9,0.31398]
[1688311695151,0.00784991,1911.0,1910.9,10.10998]
[1688311695953,0.36356602,1911.0,1910.9,10.10998]
[1688311696655,0.36356602,1911.0,1910.9,4.91698]
[1688311697751,0.36356602,1911.0,1910.9,10.66470011]
[1688311697953,0.36356602,1911.0,1910.9,15.85770011]
[1688311698460,4.14949,1911.6,1910.9,15.85770011]
[1688311698461,2.91446981,1911.9,1911.5,10.193]
[1688311698666,2.91446981,1911.9,1911.8,4.589]
[1688311698667,0.31383,1911.9,1911.8,4.589]
[1688311698848,22.153,1912.1,1911.9,0.31382]
[1688311699049,0.28671635,1912.0,1911.9,0.31382]
[1688311699465,0.60051635,1912.0,1911.9,0.31382]
[1688311699648,4.37580047,1912.0,1911.9,4.90482]
[1688311699843,4.48080047,1912.0,1911.9,4.90482]
[1688311700053,4.48080047,1912.0,1911.8,0.00784539]
[1688311700263,1.27300047,1912.0,1911.8,0.32167539]
[1688311700456,3.68450004,1911.9,1911.8,0.32167539]
[1688311700659,4.10332004,1911.9,1911.8,0.00784539]
[1688311700861,4.10332004,1911.9,1911.5,0.31386]
[1688311701050,3.2078,1911.6,1911.5,0.31386]
[1688311701359,4.27307216,1911.6,1911.5,0.31386]
[1688311701547,4.27307216,1911.6,1911.4,0.94169]
[1688311701548,1.06527216,1911.6,1911.4,0.94169]
[1688311701755,1.63275628,1911.6,1911.5,4.91687]
[1688311702957,1.63275628,1911.6,1911.5,0.31387]
[1688311703753,0.105,1911.5,1911.3,0.00784724]
[1688311703958,4.37590047,1911.4,1911.1,0.31393]
[1688311704255,3.52173,1911.2,1911.1,0.31395]
[1688311704561,4.37593047,1911.2,1911.1,0.31395]
[1688311704757,0.31393,1911.2,1911.1,4.91695]
[1688311705350,0.60064635,1911.2,1911.1,4.91695]
[1688311705647,3.80844635,1911.2,1911.1,0.31395]
[1688311706052,0.31393,1911.2,1911.1,0.31395]
[1688311706463,0.60064635,1911.2,1911.1,0.31395]
[1688311706975,0.94181,1911.4,1911.1,9.49295]
[1688311707265,0.94181,1911.4,1911.3,4.92792]
[1688311707463,1.22852635,1911.4,1911.2,5.3988]
[1688311707764,1.22852635,1911.4,1911.2,4.614]
[1688311707969,1.22852635,1911.4,1911.0,5.56372868]
[1688311707970,5.00381047,1911.4,1911.0,5.56372868]
[1688311708152,3.2078,1911.2,1911.0,5.56372868]
[1688311708378,0.60066635,1911.1,1911.0,5.56372868]
[1688311708858,0.60066635,1911.1,1911.0,1.55572868]
[1688311709053,1.16815047,1911.1,1911.0,2.34060868]
[1688311709357,0.60066635,1911.1,1911.0,2.34060868]
[1688311710461,0.60066635,1911.1,1910.9,0.32177908]
[1688311710659,0.31397,1911.0,1910.9,0.32177908]
[1688311711062,1.31397,1911.0,1910.9,0.32177908]
[1688311713059,1.60068635,1911.0,1910.9,0.32177908]
[1688311713279,1.0,1911.0,1910.9,0.32177908]
[1688311713766,1.0,1911.0,1910.9,8.11857908]
[1688311714966,1.0,1911.0,1910.9,13.64543419]
[1688311715273,1.0,1911.0,1910.9,8.11857908]
[1688311715564,1.26682253,1911.0,1910.9,8.11857908]
[1688311716061,1.26682253,1911.0,1910.9,4.91077908]
[1688311717971,1.86750888,1911.0,1910.9,0.32177908]
[1688311718361,1.58079253,1911.0,1910.9,0.32177908]
[1688311718570,1.26682253,1911.0,1910.9,0.32177908]
[1688311718866,1.55353888,1911.0,1910.9,0.32177908]
[1688311719064,1.26682253,1911.0,1910.9,0.32177908]
[1688311719484,1.55353888,1911.0,1910.9,0.32177908]
[1688311719669,1.26682253,1911.0,1910.9,0.32177908]
[1688311719976,1.86750888,1911.0,1910.9,0.32177908]
[1688311720274,1.26682253,1911.0,1910.9,0.32177908]
[1688311720571,1.26682253,1911.0,1910.9,4.91277908]
[1688311722573,1.26682253,1911.0,1910.9,0.32177908]
[1688311723869,1.58079253,1911.0,1910.9,0.32177908]
[1688311724074,1.86750888,1911.0,1910.9,0.32177908]
[1688311725171,1.55353888,1911.0,1910.9,0.32177908]
[1688311725375,0.84891253,1911.0,1910.9,5.32177908]
[1688311725572,0.84891253,1911.0,1910.9,0.32177908]
[1688311725868,1.13562888,1911.0,1910.9,5.32177908]
[1688311726076,0.84891253,1911.0,1910.9,0.32177908]
[1688311727377,0.84891253,1911.0,1910.9,5.32177908]
[1688311727767,0.84891253,1911.0,1910.9,0.32177908]
[1688311727976,4.65739888,1911.0,1910.9,0.32177908]
[1688311728168,0.84891253,1911.0,1910.9,0.32177908]
[1688311729676,6.24984497,1911.8,1911.3,5.0]
[1688311729886,0.31389,1911.8,1911.7,4.92784]
[1688311730267,0.60060635,1911.8,1911.7,4.92784]
[1688311730466,0.92050372,1911.8,1911.7,4.92784]
[1688311730870,0.92050372,1911.8,1911.6,0.78465]
[1688311730871,0.92050372,1911.8,1911.6,0.78466]
[1688311731175,1.48798784,1911.8,1911.7,0.31385]
[1688311731373,4.69578784,1911.8,1911.7,0.31385]
[1688311731577,4.38189784,1911.8,1911.7,0.31385]
[1688311731776,1.17409784,1911.8,1911.7,0.31385]
[1688311732076,0.31989737,1911.8,1911.7,0.60056635]
[1688311732491,0.0078462,1911.9,1911.7,21.09887744]
[1688311732684,0.07029959,1911.8,1911.7,24.30667744]
[1688311732879,0.0078462,1911.9,1911.7,28.92067744]
[1688311733079,0.46241964,1911.8,1911.7,28.92067744]
[1688311733494,22.153,1912.1,1911.9,10.193]
[1688311733681,22.153,1912.1,1912.0,5.20351635]
[1688311733887,22.153,1912.1,1912.0,10.39651635]
[1688311734185,22.153,1912.1,1912.0,16.05742264]
[1688311734680,2.67722808,1912.6,1912.3,0.31376]
[1688311734681,1.82916286,1912.6,1912.3,0.31376]
[1688311734876,3.29199096,1912.8,1912.6,0.31371]
[1688311735071,3.57870731,1912.8,1912.6,0.31371]
[1688311735273,3.52930232,1912.9,1912.7,0.28671635]
[1688311735482,0.00784232,1912.9,1912.7,10.34582237]
[1688311735688,0.00784232,1912.9,1912.8,0.31367]
[1688311735897,5.19421867,1912.9,1912.8,0.31367]
[1688311736079,5.19421867,1912.9,1912.6,0.94103]
[1688311736583,4.595,1912.7,1912.6,0.3137]
[1688311736777,5.19540635,1912.7,1912.6,0.3137]
[1688311737475,5.19540635,1912.7,1912.6,0.60041635]
[1688311737682,0.60040635,1912.7,1912.6,0.3137]
[1688311738178,0.60040635,1912.7,1912.6,0.60041635]
[1688311738379,0.60040635,1912.7,1912.6,0.3137]
[1688311739686,0.00784232,1912.9,1912.6,10.87267406]
[1688311740183,0.32151232,1912.9,1912.6,10.87267406]
[1688311740377,0.39582715,1912.8,1912.6,10.87267406]
[1688311740580,0.00784232,1912.9,1912.6,10.87267406]
[1688311740886,0.39582138,1912.8,1912.6,10.87267406]
[1688311741286,0.00784232,1912.9,1912.6,10.87267406]
[1688311741484,0.39581648,1912.7,1912.6,10.87267406]
[1688311741688,0.31368,1912.8,1912.6,10.87267406]
[1688311741998,0.39581114,1912.7,1912.6,10.87267406]
[1688311742386,0.00784232,1912.9,1912.6,10.87267406]
[1688311742685,0.00784232,1912.9,1912.8,14.71167]
[1688311742990,0.00784232,1912.9,1912.8,20.08593404]
[1688311743188,0.00784232,1912.9,1912.8,15.08593404]
[1688311743393,0.00784232,1912.9,1912.8,20.08593404]
[1688311743596,0.00784232,1912.9,1912.8,0.60038635]
[1688311743597,22.86621867,1912.9,1912.8,0.60038635]
[1688311743889,26.07401867,1912.9,1912.6,0.3137]
[1688311744194,26.07401867,1912.9,1912.3,0.78429]
[1688311744195,7.7878,1912.7,1912.3,0.78429]
[1688311744494,0.31374,1912.4,1912.1,4.90479]
[1688311744700,0.56748412,1912.3,1912.1,4.591]
[1688311744990,3.52157,1912.2,1912.1,4.90479]
[1688311745191,3.52157,1912.2,1912.1,5.19150635]
[1688311745494,0.31377,1912.2,1912.1,5.19150635]
[1688311745893,0.41431251,1912.2,1912.1,5.19150635]
[1688311746189,0.41431251,1912.2,1912.1,10.95985802]
[1688311746384,0.41431251,1912.2,1912.1,5.19150635]
[1688311746580,0.41431251,1912.2,1912.1,10.76325982]
[1688311746782,0.41431251,1912.2,1912.1,5.19150635]
[1688311746987,0.10054251,1912.2,1912.1,10.92741131]
[1688311748680,0.10054251,1912.2,1912.1,14.13521131]
[1688311749083,0.10054251,1912.2,1912.1,19.32821131]
[1688311749290,0.05954251,1912.2,1912.1,19.32821131]
[1688311749596,21.90699033,1912.3,1912.2,5.0]
[1688311749791,15.24729033,1912.3,1912.2,19.73477]
[1688311749990,14.84729033,1912.3,1912.2,25.56472202]
[1688311750991,11.79649033,1912.3,1912.2,25.56472202]
[1688311751296,0.3137,1912.7,1912.4,5.0]
[1688311751596,0.3137,1912.7,1912.6,4.92771]
[1688311753297,0.78423,1912.8,1912.6,4.92771]
[1688311753491,0.00784232,1912.9,1912.7,0.28671635]
[1688311753698,0.00784232,1912.9,1912.8,14.53667]
[1688311753896,0.00784232,1912.9,1912.8,19.92204735]
[1688311754699,0.00784232,1912.9,1912.8,25.11504735]
[1688311755198,0.00784232,1912.9,1912.8,19.92204735]
[1688311756598,0.00784232,1912.9,1912.8,15.30804735]
[1688311757101,0.39722865,1912.9,1912.8,15.30804735]
[1688311757499,0.2597639,1912.9,1912.8,15.30804735]
[1688311757807,0.2597639,1912.9,1912.8,5.69904735]
[1688311757808,0.35796695,1912.9,1912.8,5.69904735]
[1688311758003,0.9583433,1912.9,1912.8,5.69904735]
[1688311758216,0.9583433,1912.9,1912.5,1.04562]
[1688311758217,4.2711433,1912.9,1912.5,1.04562]
[1688311758408,3.2078,1912.7,1912.4,0.7843]
[1688311758595,3.3128,1912.5,1912.3,0.41424246]
[1688311758807,0.31374,1912.4,1912.3,0.72799246]
[1688311759004,0.88122412,1912.4,1911.9,0.79234498]
[1688311759318,3.2078,1912.2,1911.9,0.79234498]
[1688311759496,3.2078,1912.0,1911.9,0.00784498]
[1688311759698,3.5216,1912.0,1911.8,0.94147]
[1688311759898,0.3138,1912.0,1911.8,0.94147]
[1688311760101,0.85420047,1911.9,1911.8,0.94147]
[1688311760394,1.16802047,1911.9,1911.8,5.81718635]
[1688311760593,0.78456,1912.0,1911.8,5.81718635]
[1688311761796,0.3138,1912.1,1911.8,5.81718635]
[1688311762201,0.78448,1912.2,1912.0,4.573]
[1688311762402,0.78448,1912.2,1912.1,0.60050635]
[1688311762599,1.07119635,1912.2,1912.1,0.60050635]
[1688311762806,1.07119635,1912.2,1912.1,4.92779]
[1688311763002,1.07119635,1912.2,1911.8,0.94147]
[1688311763204,4.08909412,1912.1,1911.9,0.31382]
[1688311763403,4.08909412,1912.1,1912.0,0.3138]
[1688311763822,4.37581047,1912.1,1911.9,0.31382]
[1688311764209,4.37581047,1912.1,1912.0,0.18528625]
[1688311764408,4.37581047,1912.1,1912.0,0.31381]
[1688311764612,1.16801047,1912.1,1911.9,0.31382]
[1688311765007,1.16801047,1912.1,1912.0,0.18529572]
[1688311765411,1.16801047,1912.1,1911.9,0.31382]
[1688311765610,3.52161,1912.0,1911.9,0.31382]
[1688311767811,0.31381,1912.0,1911.8,0.94147]
[1688311768408,0.31381,1912.0,1911.8,1.22818635]
[1688311769213,1.16801047,1912.1,1911.8,1.22818635]
[1688311769519,0.31381,1912.1,1912.0,0.31381]
[1688311769719,0.31381,1912.1,1912.0,0.60052635]
[1688311769917,0.31381,1912.1,1912.0,0.7287053]
[1688311770117,0.31381,1912.1,1912.0,5.04598895]
[1688311770322,0.31381,1912.1,1912.0,5.3327053]
[1688311770708,0.28671635,1912.1,1912.0,4.85917094]
[1688311770908,0.78448,1912.3,1912.0,5.0235153]
[1688311771421,0.28671635,1912.2,1912.0,4.2875153]
[1688311771724,0.31378,1912.2,1912.0,4.2875153]
[1688311772731,0.60049635,1912.2,1912.0,4.2875153]
[1688311773131,0.31378,1912.2,1912.0,4.2875153]
[1688311774334,22.93743,1912.4,1912.2,0.31377]
[1688311774535,22.93743,1912.4,1912.3,4.92776]
[1688311774732,23.22414635,1912.4,1912.3,4.92776]
[1688311775937,22.93743,1912.4,1912.3,4.92776]
[1688311776149,22.153,1912.4,1912.3,4.92776]
[1688311776436,22.153,1912.4,1912.3,10.81979034]
[1688311776953,22.75345635,1912.4,1912.3,4.92776]
[1688311777341,22.75345635,1912.4,1912.2,0.31377]
[1688311777538,0.56748412,1912.3,1912.2,0.31377]
[1688311777836,0.88124412,1912.3,1912.2,0.31377]
[1688311778241,0.40060007,1912.3,1912.2,0.31377]
[1688311778447,0.08684007,1912.3,1912.2,8.13557]
[1688311778630,22.0531,1912.4,1912.3,5.60047635]
[1688311778832,20.38443004,1912.4,1912.3,5.31376]
[1688311779040,20.38443004,1912.4,1912.3,10.85572748]
[1688311779242,20.38443004,1912.4,1912.3,11.14244383]
[1688311779444,0.00784293,1912.7,1912.6,5.0]
[1688311779637,0.00784293,1912.7,1912.6,9.90471]
[1688311779841,0.00784293,1912.7,1912.6,10.19142635]
[1688311780140,0.00784293,1912.7,1912.6,15.94573373]
[1688311780345,0.00784293,1912.7,1912.6,19.15353373]
[1688311781642,0.15,1913.0,1912.6,19.15353373]
[1688311781838,0.15,1913.0,1912.9,9.604]
[1688311782043,0.15,1913.0,1912.9,10.20437635]
[1688311782246,0.46364,1913.0,1912.9,15.70883465]
[1688311782743,0.15,1913.0,1912.9,15.70883465]
[1688311783544,0.00784129,1913.1,1912.9,20.90183465]
[1688311783745,0.00784129,1913.1,1913.0,8.13544]
[1688311784253,0.00784129,1913.1,1913.0,13.72365479]
[1688311784944,0.00784129,1913.1,1913.0,10.51585479]
[1688311785150,0.29455764,1913.1,1913.0,4.92764]
[1688311785336,0.60818764,1913.1,1913.0,4.92764]
[1688311785539,0.60818764,1913.1,1912.9,0.31366]
[1688311785759,0.31366,1912.9,1912.8,0.79200129]
[1688311785952,3.80817635,1912.9,1912.8,0.00784129]
[1688311786148,3.92265459,1912.9,1912.8,0.00784129]
[1688311786450,0.77762864,1912.9,1912.8,0.32152129]
[1688311786748,0.86740246,1912.9,1912.8,0.32152129]
[1688311787247,0.58068611,1912.9,1912.8,5.19923764]
[1688311787439,0.26702611,1912.9,1912.8,5.19923764]
[1688311788037,0.58068611,1912.9,1912.8,5.19923764]
[1688311789641,0.58068611,1912.9,1912.8,3.53523764]
[1688311789853,0.26702611,1912.9,1912.8,3.53523764]
[1688311790147,0.58068611,1912.9,1912.8,3.53523764]
[1688311790351,0.26702611,1912.9,1912.8,9.24170865]
[1688311790553,0.26702611,1912.9,1912.8,12.16270865]
[1688311790848,0.00784129,1913.1,1912.8,12.16270865]
[1688311790849,0.00784129,1913.1,1913.0,5.31364]
[1688311791047,0.00784129,1913.1,1913.0,8.49935635]
[1688311791348,0.00784129,1913.1,1913.0,17.66813972]
[1688311791651,0.00784129,1913.1,1913.0,22.86113972]
[1688311792047,22.153,1913.4,1913.3,5.0]
[1688311792247,22.153,1913.4,1913.3,8.52730635]
[1688311792641,22.153,1913.4,1913.3,16.69286876]
[1688311793347,17.996,1913.4,1913.3,21.88586876]
[1688311794650,17.996,1913.4,1913.3,20.59186876]
[1688311794851,2.70705204,1913.9,1913.6,5.0]
[1688311795045,2.01804843,1913.9,1913.7,5.16124635]
[1688311795248,2.8722489,1913.9,1913.7,11.06329197]
[1688311795556,3.1857389,1913.9,1913.6,0.78382]
[1688311795745,6.3935389,1913.9,1913.6,0.78382]
[1688311796051,3.1857389,1913.9,1913.6,0.31353]
[1688311796451,2.61825478,1913.9,1913.7,10.76230835]
[1688311796659,2.90178843,1914.0,1913.8,0.31351]
[1688311796854,3.18850478,1914.0,1913.8,0.31351]
[1688311797252,1.17045635,1914.0,1913.8,0.31351]
[1688311797444,1.17045635,1914.0,1913.8,0.60022635]
[1688311798158,0.88374,1914.0,1913.9,4.563]
[1688311798349,0.88374,1914.0,1913.9,4.87649]
[1688311799368,0.1,1914.0,1913.9,10.38236484]
[1688311800259,0.1,1914.0,1913.9,15.57536484]
[1688311800447,0.1,1914.0,1913.9,10.38236484]
[1688311800852,0.41348,1914.0,1913.9,10.38236484]
[1688311801457,0.1,1914.0,1913.9,10.38236484]
[1688311803860,0.41348,1914.0,1913.9,10.38236484]
[1688311804655,0.70019635,1914.0,1913.9,10.38236484]
[1688311804860,0.105,1913.9,1913.8,5.00728039]
[1688311805058,0.4185,1913.9,1913.8,1.20005039]
[1688311805558,0.4185,1913.9,1913.8,6.04776674]
[1688311805765,0.3135,1913.9,1913.8,6.04776674]
[1688311806154,0.36200708,1913.9,1913.8,6.04776674]
[1688311806555,0.67550708,1913.9,1913.8,11.98701399]
[1688311806753,0.36200708,1913.9,1913.8,11.98701399]
[1688311807259,0.36200708,1913.9,1913.8,16.58501399]
[1688311810360,0.04300708,1914.0,1913.9,5.0]
[1688311810562,0.35649708,1914.0,1913.9,5.3135]
[1688311810860,0.35649708,1914.0,1913.6,5.51257]
[1688311810861,3.95601343,1914.0,1913.6,5.51257]
[1688311811072,0.41853,1913.7,1913.4,4.598]
[1688311811263,0.31356,1913.5,1913.2,4.561]
[1688311811473,0.31359,1913.3,1913.2,4.87461]
[1688311811666,0.31359,1913.3,1913.2,5.16132635]
[1688311811869,0.60030635,1913.3,1913.2,4.87461]